bitfinex/quotes_BTCUSD_20240902
["timestamp","ask_amount","ask_price","bid_price","bid_amount"]
[1725239805462,0.32377254,57623.0,57622.0,0.1784998]
[1725239805708,0.296541,57623.0,57622.0,0.18514823]
[1725239806596,0.173541,57623.0,57622.0,0.18514823]
[1725239807316,0.173536,57625.0,57623.0,0.0808]
[1725239807558,0.173536,57625.0,57623.0,0.1808]
[1725239807791,0.173538,57624.0,57623.0,0.1]
[1725239808308,0.173538,57624.0,57623.0,0.1808]
[1725239808548,0.196538,57624.0,57623.0,0.1808]
[1725239808778,0.173531,57627.0,57624.0,0.0808]
[1725239809011,0.347047,57629.0,57624.0,0.0808]
[1725239809012,0.1,57626.0,57624.0,0.0808]
[1725239809272,0.173529,57627.0,57626.0,0.0808]
[1725239809526,0.56262869,57627.0,57626.0,0.0808]
[1725239809787,0.31556969,57627.0,57626.0,0.0798]
[1725239810672,0.103,57627.0,57626.0,0.0798]
[1725239810884,0.003,57627.0,57626.0,0.0798]
[1725239811097,0.005,57627.0,57626.0,0.0798]
[1725239813012,0.005,57627.0,57626.0,0.253332]
[1725239813257,0.005,57627.0,57626.0,0.700397]
[1725239813492,0.005,57627.0,57623.0,0.0808]
[1725239813493,0.352059,57627.0,57623.0,0.0808]
[1725239813709,0.867692,57624.0,57623.0,0.0808]
[1725239814611,0.872707,57623.0,57622.0,0.0008998]
[1725239814833,1.25053694,57623.0,57622.0,0.0008998]
[1725239815059,1.99658408,57623.0,57622.0,0.0008998]
[1725239815274,3.29522268,57623.0,57622.0,0.0008998]
[1725239815491,3.37135192,57623.0,57622.0,0.0008998]
[1725239815730,3.29353021,57623.0,57622.0,0.0008998]
[1725239815949,2.85226521,57623.0,57622.0,0.0038998]
[1725239816172,2.76075802,57623.0,57622.0,0.0038998]
[1725239817751,2.76075802,57623.0,57622.0,0.0048998]
[1725239818824,2.58721702,57623.0,57622.0,0.0048998]
[1725239819043,2.66509143,57623.0,57622.0,0.0048998]
[1725239819260,2.83863345,57623.0,57622.0,0.0048998]
[1725239819483,3.03314537,57623.0,57622.0,0.0048998]
[1725239819689,3.08413203,57623.0,57622.0,0.0048998]
[1725239819900,2.98029632,57623.0,57622.0,0.0048998]
[1725239820329,3.08416322,57623.0,57622.0,0.0038998]
[1725239820543,3.08416322,57623.0,57622.0,0.0018998]
[1725239820776,2.92661158,57623.0,57622.0,0.0018998]
[1725239820992,2.83674468,57623.0,57622.0,0.0028998]
[1725239821227,2.83674468,57623.0,57622.0,0.0008998]
[1725239821228,2.91561158,57623.0,57622.0,0.0008998]
[1725239821468,0.017,57607.0,57601.0,0.0958]
[1725239821687,0.873055,57600.0,57596.0,0.1722]
[1725239821919,1.02937775,57600.0,57596.0,0.1722]
[1725239822136,0.32385628,57600.0,57596.0,0.1722]
[1725239822359,0.48517903,57600.0,57596.0,0.1722]
[1725239822579,1.17962303,57600.0,57596.0,0.1722]
[1725239822823,2.31919403,57600.0,57596.0,0.1722]
[1725239823041,1.67087603,57600.0,57596.0,0.1722]
[1725239823282,1.50459975,57600.0,57596.0,0.1722]
[1725239823485,1.50459975,57600.0,57592.0,0.0008987]
[1725239823486,1.67315139,57600.0,57592.0,0.0008987]
[1725239823707,3.34133054,57600.0,57592.0,0.0008987]
[1725239823930,3.33141908,57600.0,57592.0,0.0008987]
[1725239824210,3.33241908,57600.0,57599.0,0.0048998]
[1725239824428,0.00333335,57593.0,57582.0,0.1798]
[1725239824657,0.359252,57595.0,57582.0,0.1798]
[1725239824658,0.86831,57583.0,57582.0,0.1798]
[1725239824886,0.520986,57583.0,57582.0,0.1798]
[1725239825152,0.16132275,57585.0,57583.0,0.0938]
[1725239825396,0.16132275,57585.0,57563.0,0.347444]
[1725239825397,0.16132275,57585.0,57584.0,0.69644365]
[1725239825644,0.1,57594.0,57589.0,0.0938]
[1725239825889,0.52626769,57600.0,57595.0,0.173623]
[1725239825890,0.014,57600.0,57595.0,0.173623]
[1725239826138,0.014,57600.0,57596.0,0.0938]
[1725239826380,0.173612,57600.0,57596.0,0.0938]
[1725239826619,0.014,57600.0,57597.0,0.0745]
[1725239826857,0.1,57602.0,57596.0,0.1681]
[1725239827098,0.173614,57599.0,57597.0,0.0936]
[1725239827329,0.01,57600.0,57597.0,0.10319541]
[1725239827569,0.230969,57601.0,57597.0,0.10319541]
[1725239827570,0.173609,57601.0,57597.0,0.10319541]
[1725239827819,0.011,57600.0,57599.0,0.173614]
[1725239828087,0.006,57600.0,57599.0,0.341714]
[1725239828308,0.006,57600.0,57599.0,0.17669035]
[1725239828524,0.173606,57602.0,57599.0,0.17669035]
[1725239828761,0.1,57603.0,57600.0,0.00166665]
[1725239828979,0.34716,57611.0,57600.0,0.00166665]
[1725239828980,0.273591,57607.0,57602.0,0.173605]
[1725239829467,0.1,57607.0,57603.0,0.08958022]
[1725239829677,0.347173,57609.0,57603.0,0.08958022]
[1725239829895,0.1,57608.0,57603.0,0.08858022]
[1725239830106,0.173587,57608.0,57603.0,0.078]
[1725239830320,0.1,57607.0,57604.0,0.00957769]
[1725239830537,0.101,57607.0,57604.0,0.00957769]
[1725239830751,0.102,57607.0,57604.0,0.00957769]
[1725239830992,0.101,57607.0,57604.0,0.00957769]
[1725239831214,0.1,57607.0,57604.0,0.00957769]
[1725239831449,0.1,57607.0,57605.0,0.0988]
[1725239831679,0.20081684,57612.0,57607.0,0.272389]
[1725239831906,0.02724184,57612.0,57609.0,0.173582]
[1725239832119,0.02724184,57612.0,57610.0,0.0968]
[1725239832565,0.02724184,57612.0,57610.0,0.2799425]
[1725239833004,0.02724184,57612.0,57611.0,0.253577]
[1725239833211,0.02724184,57612.0,57611.0,0.26313697]
[1725239834960,0.02724184,57612.0,57611.0,0.26413697]
[1725239835906,0.02724184,57612.0,57611.0,0.09055997]
[1725239836124,0.02724184,57612.0,57611.0,0.01055997]
[1725239836125,1.12147728,57612.0,57611.0,0.01055997]
[1725239836346,1.46862628,57612.0,57611.0,0.01055997]
[1725239836566,1.46862628,57612.0,57611.0,0.001]
[1725239837031,0.867902,57610.0,57609.0,0.0008998]
[1725239837241,1.03810096,57610.0,57609.0,0.0008998]
[1725239838814,1.38526196,57610.0,57609.0,0.0008998]
[1725239839916,1.03810096,57610.0,57609.0,0.0008998]
[1725239840140,1.04010096,57610.0,57609.0,0.0008998]
[1725239840359,0.892902,57610.0,57609.0,0.1845998]
[1725239841026,0.002,57610.0,57609.0,0.3581828]
[1725239841269,0.002,57610.0,57609.0,0.71817565]
[1725239841501,0.02724184,57612.0,57611.0,0.173577]
[1725239841718,0.1,57616.0,57613.0,0.1055]
[1725239842147,0.273563,57616.0,57614.0,0.01114444]
[1725239842600,0.1,57616.0,57614.0,0.01114444]
[1725239842821,0.447109,57619.0,57614.0,0.01114444]
[1725239843036,0.196559,57618.0,57614.0,0.01114444]
[1725239843303,0.1,57617.0,57614.0,0.18471244]
[1725239843525,0.1,57617.0,57615.0,0.01114149]
[1725239843758,0.000818,57624.0,57617.0,0.1055]
[1725239843980,0.000818,57624.0,57618.0,0.1055]
[1725239843981,0.30159816,57623.0,57618.0,0.1055]
[1725239844202,0.007,57619.0,57618.0,0.64147389]
[1725239844658,0.000818,57623.0,57620.0,0.17355]
[1725239844875,0.000818,57623.0,57622.0,0.173544]
[1725239845100,0.011818,57623.0,57622.0,1.053322]
[1725239845314,0.011818,57623.0,57622.0,1.07027683]
[1725239845539,0.000818,57623.0,57622.0,1.06627683]
[1725239845720,0.000818,57623.0,57622.0,0.71918783]
[1725239846169,0.000818,57623.0,57622.0,1.06627683]
[1725239846840,0.000818,57623.0,57622.0,1.06527683]
[1725239847720,0.001818,57623.0,57622.0,1.06827683]
[1725239848165,0.002818,57623.0,57622.0,1.06827683]
[1725239848634,0.003818,57623.0,57622.0,1.07627683]
[1725239849065,0.003818,57623.0,57622.0,0.73008763]
[1725239849281,0.003818,57623.0,57622.0,1.07717663]
[1725239850360,0.03104723,57623.0,57622.0,1.07717663]
[1725239852547,0.03104723,57623.0,57622.0,0.73008763]
[1725239853637,0.03104723,57623.0,57622.0,0.38133198]
[1725239853862,0.55167123,57623.0,57622.0,0.21278798]
[1725239854102,1.000613,57623.0,57622.0,0.02718798]
[1725239854555,1.000613,57623.0,57622.0,0.0118998]
[1725239854841,1.347696,57623.0,57622.0,0.0118998]
[1725239855280,1.000613,57623.0,57622.0,0.0118998]
[1725239856153,0.894525,57623.0,57622.0,0.0118998]
[1725239856371,1.241608,57623.0,57622.0,0.0118998]
[1725239857241,1.241608,57623.0,57622.0,0.0038998]
[1725239857242,1.26784221,57623.0,57622.0,0.0038998]
[1725239857459,2.90005621,57623.0,57622.0,0.0008998]
[1725239857677,2.44606121,57623.0,57622.0,0.0008998]
[1725239857915,2.11714821,57623.0,57622.0,0.0018998]
[1725239858135,2.28569985,57623.0,57622.0,0.0008998]
[1725239858349,2.28569985,57623.0,57622.0,0.0018998]
[1725239859333,1.53439385,57623.0,57622.0,0.0018998]
[1725239859591,1.01875921,57623.0,57622.0,0.0018998]
[1725239860788,1.36584221,57623.0,57622.0,0.0018998]
[1725239861029,1.01875921,57623.0,57622.0,0.0018998]
[1725239861298,0.64867621,57623.0,57622.0,0.0018998]
[1725239861810,0.76446511,57623.0,57622.0,0.01718798]
[1725239862030,0.76446511,57623.0,57622.0,0.0018998]
[1725239863999,0.12805221,57623.0,57622.0,0.0018998]
[1725239864228,0.02805221,57623.0,57622.0,0.01718798]
[1725239864457,0.02805221,57623.0,57622.0,0.19073198]
[1725239864915,0.02805221,57623.0,57622.0,0.01718798]
[1725239865355,0.02805221,57623.0,57622.0,0.12428798]
[1725239865575,0.02805221,57623.0,57622.0,0.29783198]
[1725239865807,0.02805221,57623.0,57622.0,0.38013198]
[1725239866025,0.000818,57623.0,57622.0,0.72722098]
[1725239866285,0.000818,57623.0,57622.0,0.72888763]
[1725239866506,0.000818,57623.0,57622.0,1.07597663]
[1725239867897,0.000818,57623.0,57622.0,1.42306563]
[1725239870253,0.000818,57623.0,57622.0,1.42206563]
[1725239870485,0.02904633,57623.0,57622.0,1.42406563]
[1725239870944,0.03004633,57623.0,57622.0,1.43106563]
[1725239871415,0.03004633,57623.0,57622.0,1.08397663]
[1725239874317,0.002818,57623.0,57622.0,1.08397663]
[1725239874942,0.002818,57623.0,57622.0,1.43106563]
[1725239881390,0.002818,57623.0,57622.0,1.77815463]
[1725239882120,0.002818,57623.0,57622.0,1.77115463]
[1725239882121,0.001818,57623.0,57622.0,1.77115463]
[1725239882339,0.000818,57623.0,57622.0,1.76915463]
[1725239882572,0.002818,57623.0,57622.0,1.77815463]
[1725239883011,0.002818,57623.0,57622.0,1.77115463]
[1725239883012,0.001818,57623.0,57622.0,1.77115463]
[1725239883451,0.002818,57623.0,57622.0,1.77815463]
[1725239883907,0.001818,57623.0,57622.0,1.77615463]
[1725239884337,0.002818,57623.0,57622.0,1.95047738]
[1725239886299,0.002818,57623.0,57622.0,1.95247738]
[1725239886759,0.002818,57623.0,57622.0,2.30456638]
[1725239887218,0.002818,57623.0,57622.0,2.31124305]
[1725239888505,0.002818,57623.0,57622.0,2.32124305]
[1725239888763,0.000818,57641.0,57640.0,0.35675665]
[1725239888983,0.000818,57641.0,57640.0,1.06592715]
[1725239889197,0.000818,57641.0,57640.0,1.41290815]
[1725239889900,0.000818,57641.0,57640.0,1.41190815]
[1725239890124,0.000818,57641.0,57640.0,1.75888915]
[1725239890771,0.000818,57641.0,57640.0,1.76288915]
[1725239890976,0.000818,57641.0,57640.0,1.75888915]
[1725239891197,0.000818,57641.0,57640.0,1.42590815]
[1725239891653,0.000818,57641.0,57640.0,1.43990815]
[1725239892063,0.000818,57641.0,57640.0,1.42590815]
[1725239892280,0.000818,57641.0,57640.0,1.43990815]
[1725239892910,0.000818,57641.0,57640.0,1.42590815]
[1725239893152,0.000818,57641.0,57640.0,1.78688915]
[1725239893429,0.000818,57641.0,57640.0,1.77288915]
[1725239893667,0.000818,57641.0,57640.0,1.78688915]
[1725239894698,0.173437,57658.0,57653.0,0.173448]
[1725239894904,0.173437,57658.0,57654.0,0.173447]
[1725239895109,0.173437,57658.0,57654.0,0.18859357]
[1725239895524,0.173431,57660.0,57656.0,0.17410865]
[1725239895754,0.173431,57660.0,57657.0,0.0151333]
[1725239895964,0.173431,57660.0,57656.0,0.17410665]
[1725239896169,0.09992651,57664.0,57654.0,0.349896]
[1725239896170,0.173422,57663.0,57658.0,0.17410065]
[1725239896392,0.173431,57660.0,57659.0,0.01512445]
[1725239896612,0.173431,57660.0,57658.0,0.00066665]
[1725239896835,0.173431,57660.0,57659.0,0.01512445]
[1725239897047,0.20965751,57660.0,57659.0,0.01512445]
[1725239897490,0.03622651,57660.0,57659.0,0.01512445]
[1725239897996,0.03622651,57660.0,57659.0,0.01712445]
[1725239899365,0.03622651,57660.0,57659.0,0.01912445]
[1725239899607,0.20965651,57660.0,57659.0,0.01912445]
[1725239899839,0.03622651,57660.0,57659.0,0.72542345]
[1725239900047,0.16132275,57661.0,57659.0,0.37855745]
[1725239900255,0.346824,57666.0,57660.0,0.17343]
[1725239900460,0.16132275,57670.0,57660.0,0.17409465]
[1725239900663,0.173417,57665.0,57661.0,0.01511561]
[1725239901088,0.346818,57667.0,57661.0,0.01511561]
[1725239901089,0.173419,57664.0,57661.0,0.01511561]
[1725239901931,0.346818,57667.0,57661.0,0.01511561]
[1725239902128,0.173419,57664.0,57661.0,0.01511561]
[1725239902348,0.173415,57666.0,57661.0,0.01511561]
[1725239902718,0.173415,57666.0,57661.0,0.18854161]
[1725239903449,0.001,57664.0,57661.0,0.18854161]
[1725239903672,0.001,57664.0,57663.0,0.17408765]
[1725239904152,0.174418,57664.0,57663.0,0.01510676]
[1725239904391,0.33701455,57664.0,57663.0,0.01510676]
[1725239904622,0.001,57664.0,57663.0,0.346842]
[1725239904830,0.02721296,57668.0,57663.0,0.01510676]
[1725239905046,0.001,57664.0,57663.0,0.53536976]
[1725239905253,0.001,57664.0,57663.0,0.52092965]
[1725239905474,0.001,57664.0,57663.0,0.53603641]
[1725239905980,0.001,57664.0,57663.0,0.01577341]
[1725239906205,0.19589613,57664.0,57663.0,0.01510676]
[1725239906413,0.19489613,57664.0,57663.0,0.01510676]
[1725239906833,0.19489613,57664.0,57663.0,0.001]
[1725239907037,0.19489613,57664.0,57663.0,0.01610676]
[1725239907261,0.19489613,57664.0,57663.0,0.001]
[1725239907465,0.19489613,57664.0,57663.0,0.01610676]
[1725239907675,0.16132275,57664.0,57663.0,0.01510676]
[1725239908085,0.16314075,57664.0,57663.0,0.01510676]
[1725239908707,0.001818,57664.0,57663.0,0.01510676]
[1725239909128,0.175236,57664.0,57663.0,0.01510676]
[1725239909337,0.522072,57664.0,57663.0,0.01510676]
[1725239909544,0.173422,57663.0,57658.0,0.173435]
[1725239910787,0.174422,57663.0,57658.0,0.173435]
[1725239911474,0.173424,57662.0,57658.0,0.173435]
[1725239912771,0.056,57658.0,57647.0,0.00066665]
[1725239913040,0.173449,57654.0,57650.0,0.173459]
[1725239913241,0.17345,57654.0,57650.0,0.173459]
[1725239913661,0.16833464,57655.0,57650.0,0.173459]
[1725239914374,0.16833464,57655.0,57650.0,0.176459]
[1725239914596,0.16833464,57655.0,57650.0,0.173459]
[1725239914833,0.17345,57654.0,57650.0,0.173459]
[1725239915069,0.173457,57651.0,57650.0,0.002]
[1725239915303,0.520372,57651.0,57650.0,0.004]
[1725239915574,0.622772,57651.0,57650.0,0.004]
[1725239915789,0.622772,57651.0,57650.0,0.002]
[1725239915790,0.275857,57651.0,57650.0,0.002]
[1725239916058,0.252457,57651.0,57650.0,0.005]
[1725239916522,0.599372,57651.0,57650.0,0.01816426]
[1725239916752,0.599372,57651.0,57650.0,0.006]
[1725239917047,0.599372,57651.0,57650.0,0.003]
[1725239917294,0.17346,57650.0,57645.0,0.173472]
[1725239917547,0.023,57649.0,57641.0,0.173486]
[1725239917772,0.023,57649.0,57638.0,0.00066665]
[1725239917773,0.173473,57646.0,57642.0,0.173483]
[1725239917984,0.369928,57649.0,57640.0,0.0811]
[1725239918204,0.369928,57649.0,57641.0,0.173487]
[1725239918205,0.173477,57645.0,57641.0,0.173487]
[1725239918926,0.173477,57645.0,57642.0,0.008]
[1725239919154,0.346938,57648.0,57642.0,0.008]
[1725239919371,0.173475,57646.0,57642.0,0.008]
[1725239919591,0.173475,57646.0,57642.0,0.181482]
[1725239919807,0.173475,57646.0,57642.0,0.0178987]
[1725239920242,0.173475,57646.0,57642.0,0.1743827]
[1725239920464,0.173475,57646.0,57642.0,0.1813827]
[1725239920684,0.173475,57646.0,57642.0,0.1743827]
[1725239920895,0.173468,57648.0,57644.0,0.0967]
[1725239921116,0.40723035,57654.0,57644.0,0.09736665]
[1725239921117,0.402897,57654.0,57644.0,0.09736665]
[1725239921330,0.26696123,57656.0,57649.0,0.00066665]
[1725239921560,0.26696123,57656.0,57652.0,0.52102965]
[1725239921777,0.26696123,57656.0,57652.0,0.520363]
[1725239922005,0.26696123,57656.0,57654.0,0.173448]
[1725239922209,0.173438,57658.0,57654.0,0.173448]
[1725239922420,0.1,57657.0,57654.0,0.173448]
[1725239924206,0.27344,57657.0,57655.0,0.01514214]
[1725239924642,0.27344,57657.0,57656.0,0.01513772]
[1725239925049,0.27344,57657.0,57653.0,0.173449]
[1725239925287,0.30065789,57657.0,57656.0,0.01513772]
[1725239925502,0.30065789,57657.0,57653.0,0.173449]
[1725239925709,0.30165789,57657.0,57656.0,0.01513772]
[1725239925920,0.30165789,57657.0,57653.0,0.173449]
[1725239926131,0.30065789,57657.0,57656.0,0.01513772]
[1725239926367,0.30065789,57657.0,57653.0,0.173449]
[1725239926647,0.30165789,57657.0,57656.0,0.01513772]
[1725239926834,0.30165789,57657.0,57653.0,0.173449]
[1725239927086,0.30165789,57657.0,57654.0,0.01514657]
[1725239927511,0.30165789,57657.0,57653.0,0.173449]
[1725239927727,0.30165789,57657.0,57655.0,0.01514214]
[1725239927939,0.30165789,57657.0,57654.0,0.01514657]
[1725239928154,0.30165789,57657.0,57653.0,0.173449]
[1725239928376,0.173442,57656.0,57655.0,0.01514214]
[1725239928586,0.273442,57656.0,57654.0,0.01514657]
[1725239928800,0.273442,57656.0,57655.0,0.01514214]
[1725239929021,0.1,57656.0,57655.0,0.01514214]
[1725239929233,0.1,57656.0,57653.0,0.173449]
[1725239929445,0.1,57656.0,57655.0,0.01514214]
[1725239929688,0.001,57657.0,57654.0,0.01514657]
[1725239929914,0.001,57656.0,57655.0,0.52100165]
[1725239930136,0.173425,57662.0,57658.0,0.173435]
[1725239930371,0.173425,57662.0,57655.0,0.54589879]
[1725239930372,0.000817,57663.0,57659.0,0.172432]
[1725239930588,0.000817,57663.0,57659.0,0.18755645]
[1725239930812,0.173425,57662.0,57658.0,0.173436]
[1725239931058,0.000817,57663.0,57660.0,0.01512003]
[1725239931272,0.000817,57663.0,57660.0,0.173428]
[1725239931515,0.000817,57663.0,57660.0,0.163428]
[1725239931765,0.000817,57663.0,57661.0,0.01511561]
[1725239932212,0.000817,57663.0,57662.0,0.696172]
[1725239932665,0.000817,57663.0,57662.0,1.05813119]
[1725239933078,0.00064211,57663.0,57662.0,1.05813119]
[1725239933339,0.00064211,57663.0,57662.0,0.71128319]
[1725239933781,0.00064211,57663.0,57662.0,0.71228319]
[1725239935434,0.00064211,57663.0,57662.0,0.01611119]
[1725239935648,2.14471711,57663.0,57662.0,0.01611119]
[1725239935867,1.08204611,57663.0,57662.0,0.01611119]
[1725239936112,1.27359775,57663.0,57662.0,0.001]
[1725239936558,1.33213314,57663.0,57662.0,0.001]
[1725239936799,0.173439,57657.0,57652.0,0.173453]
[1725239937248,0.173443,57656.0,57654.0,0.01514657]
[1725239937691,0.173443,57656.0,57652.0,0.173453]
[1725239938148,0.173443,57656.0,57654.0,0.01514657]
[1725239938365,0.173443,57656.0,57652.0,0.173453]
[1725239938597,0.07546161,57663.0,57656.0,0.00066665]
[1725239938820,0.02364211,57663.0,57657.0,0.346878]
[1725239939040,0.173425,57662.0,57658.0,0.173434]
[1725239939476,0.00064211,57663.0,57660.0,0.17343]
[1725239939703,0.00064211,57663.0,57659.0,0.01512445]
[1725239939942,0.00064211,57663.0,57662.0,0.256624]
[1725239940398,0.00064211,57663.0,57662.0,0.09831119]
[1725239940622,0.00064211,57663.0,57662.0,0.01511119]
[1725239941116,0.00064211,57663.0,57662.0,0.17409065]
[1725239941340,0.00064211,57663.0,57662.0,0.53804984]
[1725239941994,0.00064211,57663.0,57662.0,0.88689784]
[1725239942272,0.00064211,57663.0,57662.0,1.07069784]
[1725239943379,0.00064211,57663.0,57662.0,1.41754584]
[1725239947059,0.00064211,57663.0,57662.0,1.41554584]
[1725239947285,0.00064211,57663.0,57662.0,1.42954584]
[1725239948169,0.00064211,57663.0,57662.0,0.73384984]
[1725239948390,0.00588344,57663.0,57662.0,0.02911119]
[1725239948611,0.00064211,57663.0,57662.0,0.75131806]
[1725239948860,0.00064211,57663.0,57662.0,1.09469784]
[1725239949101,0.00064211,57663.0,57662.0,1.44154584]
[1725239950905,0.00064211,57663.0,57662.0,1.09469784]
[1725239952477,0.00064211,57663.0,57662.0,0.04311119]
[1725239952478,0.25596486,57663.0,57662.0,0.04311119]
[1725239952700,1.78234632,57663.0,57662.0,0.04311119]
[1725239952911,1.42072132,57663.0,57662.0,0.04311119]
[1725239953132,1.47760342,57663.0,57662.0,0.028]
[1725239953356,0.346867,57659.0,57653.0,0.0008987]
[1725239953582,0.173444,57656.0,57653.0,0.0008987]
[1725239953804,0.173437,57658.0,57655.0,0.00066665]
[1725239954016,0.346865,57660.0,57655.0,0.00066665]
[1725239954237,0.173441,57657.0,57656.0,0.01335126]
[1725239954685,0.173441,57657.0,57655.0,0.00066665]
[1725239954898,0.173442,57656.0,57655.0,0.00066665]
[1725239955388,0.204942,57656.0,57653.0,0.0008987]
[1725239955604,1.67136935,57654.0,57653.0,0.0008987]
[1725239955835,4.51903777,57654.0,57653.0,0.0008987]
[1725239956058,1.56766635,57643.0,57624.0,0.50540786]
[1725239956279,1.7289891,57643.0,57624.0,0.50540786]
[1725239956520,0.68192875,57625.0,57624.0,0.50540786]
[1725239956752,0.16132275,57625.0,57624.0,0.50540786]
[1725239956977,0.16132275,57629.0,57624.0,0.00066665]
[1725239957275,0.173527,57628.0,57624.0,0.00066665]
[1725239957362,0.347054,57628.0,57624.0,0.00066665]
[1725239957571,0.173531,57627.0,57624.0,0.00066665]
[1725239957790,0.173532,57626.0,57625.0,0.00066665]
[1725239958026,0.173532,57626.0,57622.0,0.00156645]
[1725239958249,0.173536,57625.0,57622.0,0.0008998]
[1725239958490,0.173529,57628.0,57625.0,0.00066665]
[1725239958732,0.17353,57627.0,57625.0,0.00066665]
[1725239958959,0.00033335,57625.0,57622.0,0.1744438]
[1725239959243,0.00033335,57625.0,57622.0,0.0008998]
[1725239959709,0.00133335,57625.0,57622.0,0.0008998]
[1725239959940,0.173533,57626.0,57622.0,0.0008998]
[1725239960413,0.173541,57623.0,57622.0,0.0008998]
[1725239960641,0.001,57625.0,57622.0,0.0008998]
[1725239961402,0.174536,57625.0,57622.0,0.0008998]
[1725239961848,0.173539,57624.0,57622.0,0.0008998]
[1725239962336,0.20591281,57626.0,57622.0,0.0008998]
[1725239962337,0.37944681,57626.0,57622.0,0.0008998]
[1725239962567,0.37844681,57626.0,57622.0,0.0008998]
[1725239962815,0.520624,57623.0,57622.0,0.0018998]
[1725239963073,0.867707,57623.0,57622.0,0.0008998]
[1725239963565,0.867707,57623.0,57622.0,0.0038998]
[1725239963801,1.06352649,57623.0,57622.0,0.0018998]
[1725239964041,0.520624,57623.0,57622.0,0.0008998]
[1725239964293,0.867707,57623.0,57622.0,0.0008998]
[1725239964542,0.868707,57623.0,57622.0,0.0008998]
[1725239964792,1.03002975,57623.0,57622.0,0.0008998]
[1725239965287,1.02902975,57623.0,57622.0,0.0008998]
[1725239965779,1.03102975,57623.0,57622.0,0.0008998]
[1725239966034,1.13638071,57623.0,57622.0,0.0008998]
[1725239966280,1.03102975,57623.0,57622.0,0.0008998]
[1725239966525,1.07561981,57623.0,57622.0,0.0008998]
[1725239967002,1.07461981,57623.0,57622.0,0.0008998]
[1725239967242,1.07561981,57623.0,57622.0,0.0008998]
[1725239967490,1.44570281,57623.0,57622.0,0.0008998]
[1725239967729,1.60053364,57623.0,57622.0,0.0008998]
[1725239968918,1.60715922,57623.0,57622.0,0.0008998]
[1725239969159,2.09974322,57623.0,57622.0,0.0008998]
[1725239970116,2.09674322,57623.0,57622.0,0.0008998]
[1725239970353,2.09974322,57623.0,57622.0,0.0008998]
[1725239970587,1.60715922,57623.0,57622.0,0.0008998]
[1725239970794,1.60053364,57623.0,57622.0,0.0008998]
[1725239971272,1.77538264,57623.0,57622.0,0.0008998]
[1725239973448,1.78210863,57623.0,57622.0,0.0008998]
[1725239976552,1.78410863,57623.0,57622.0,0.0008998]
[1725239977059,1.78210863,57623.0,57622.0,0.0008998]
[1725239977295,2.98973363,57623.0,57622.0,0.0008998]
[1725239977528,2.71023363,57623.0,57622.0,0.0008998]
[1725239977771,1.47384981,57623.0,57622.0,0.0008998]
[1725239978010,1.47384981,57623.0,57622.0,0.1719998]
[1725239978011,0.36086375,57623.0,57622.0,0.1719998]
[1725239978245,1.05502975,57623.0,57622.0,0.10800341]
[1725239978720,1.05502975,57623.0,57622.0,0.0957998]
[1725239978965,1.05502975,57623.0,57622.0,0.10800341]
[1725239979168,0.78705058,57623.0,57622.0,0.10800341]
[1725239979440,0.96059158,57623.0,57622.0,0.0957998]
[1725239979688,0.09388458,57623.0,57622.0,0.0957998]
[1725239979929,0.001,57623.0,57622.0,0.0957998]
[1725239980173,0.001,57623.0,57622.0,0.10800341]
[1725239980401,0.001,57623.0,57622.0,0.28154741]
[1725239980610,0.21769211,57630.0,57622.0,0.36394741]
[1725239980611,0.17353,57627.0,57622.0,0.36394741]
[1725239980831,0.16132275,57629.0,57623.0,0.173541]
[1725239980832,0.173528,57628.0,57623.0,0.173541]
[1725239981069,0.173528,57628.0,57623.0,0.172541]
[1725239981070,0.1,57627.0,57623.0,0.172541]
[1725239981311,0.1,57627.0,57624.0,0.01219475]
[1725239982037,0.16132275,57629.0,57625.0,0.173534]
[1725239982305,0.1,57628.0,57625.0,0.173534]
[1725239982549,0.16132275,57629.0,57627.0,0.173528]
[1725239982795,0.16132275,57629.0,57626.0,0.0121859]
[1725239983051,0.16132275,57629.0,57626.0,0.173531]
[1725239983549,0.16132275,57629.0,57627.0,0.01218147]
[1725239984033,0.16132275,57629.0,57627.0,0.18570947]
[1725239984518,0.16132275,57629.0,57628.0,0.352026]
[1725239985001,0.16132275,57629.0,57628.0,0.36420304]
[1725239985249,0.20074586,57633.0,57632.0,0.173514]
[1725239985250,0.02723286,57633.0,57632.0,0.173514]
[1725239985750,0.02723286,57633.0,57632.0,0.01115934]
[1725239985988,0.36206661,57633.0,57632.0,0.01115934]
[1725239986230,0.40625677,57633.0,57632.0,0.01115934]
[1725239986463,0.001,57629.0,57628.0,0.1785]
[1725239986933,0.04519921,57629.0,57628.0,0.19055204]
[1725239987167,0.20652196,57629.0,57628.0,0.19055204]
[1725239987665,0.38004496,57629.0,57628.0,0.01205204]
[1725239988071,0.173527,57628.0,57624.0,0.1834]
[1725239988541,0.04419921,57627.0,57624.0,0.1834]
[1725239988781,0.04419921,57627.0,57625.0,0.01206532]
[1725239989285,0.21772921,57627.0,57625.0,0.01206532]
[1725239990027,0.21772921,57627.0,57626.0,0.0120609]
[1725239990270,0.21772921,57627.0,57624.0,0.1834]
[1725239990505,0.21772921,57627.0,57626.0,0.0120609]
[1725239990740,0.04419921,57627.0,57625.0,0.01306532]
[1725239990988,0.21773021,57627.0,57626.0,0.0120609]
[1725239991933,0.04419921,57627.0,57626.0,0.0120609]
[1725239992176,0.21773121,57627.0,57624.0,0.1844]
[1725239992417,0.21772821,57627.0,57626.0,0.0120609]
[1725239992644,0.21772821,57627.0,57626.0,0.001]
[1725239993776,0.21772821,57627.0,57626.0,0.0130609]
[1725239994015,0.21772821,57627.0,57626.0,0.001]
[1725239994457,0.21772821,57627.0,57624.0,0.1396]
[1725239994899,0.21772821,57627.0,57625.0,0.01206532]
[1725239995363,0.520597,57626.0,57625.0,0.01206532]
[1725239995680,2.080065,57626.0,57625.0,0.01206532]
[1725239995775,0.520624,57623.0,57614.0,0.0763]
[1725239995997,1.39911275,57623.0,57614.0,0.0763]
[1725239996218,2.68810539,57623.0,57614.0,0.0763]
[1725239996678,1.56766439,57623.0,57614.0,0.0763]
[1725239996905,2.61296239,57623.0,57614.0,0.0763]
[1725239997123,2.61296239,57623.0,57609.0,0.1744828]
[1725239997124,2.61796239,57623.0,57613.0,0.0763]
[1725239997807,2.66216903,57623.0,57613.0,0.0763]
[1725239998053,1.55665066,57623.0,57613.0,0.0763]